bitfinex-derivatives/quotes_ETHF0:USTF0_20251126
["timestamp","ask_amount","ask_price","bid_price","bid_amount"]
[1764153678359,1.8487726,2915.0,2914.5,0.2686]
[1764153678548,0.45171959,2915.0,2914.9,0.4528]
[1764153679646,0.00391959,2915.0,2914.9,0.4528]
[1764153680255,0.45171959,2915.0,2914.9,0.4528]
[1764153680452,0.00391959,2915.0,2914.9,0.4528]
[1764153681760,0.45171959,2915.0,2914.7,0.00514765]
[1764153681957,0.00391959,2915.0,2914.9,0.4528]
[1764153683253,0.45171959,2915.0,2914.9,0.4528]
[1764153683957,0.4478,2914.8,2914.7,0.45794765]
[1764153684159,1.8487726,2914.8,2914.7,0.00514765]
[1764153685159,0.17161,2914.9,2914.8,0.4528]
[1764153685564,0.61941,2914.9,2914.8,0.4528]
[1764153686059,0.4478,2914.8,2914.7,0.45794765]
[1764153686960,0.4478,2914.8,2914.7,0.00514765]
[1764153690365,0.4478,2914.8,2914.7,0.45794765]
[1764153691975,0.61941,2914.8,2914.7,0.45794765]
[1764153692269,2.0203826,2914.8,2914.7,0.00514765]
[1764153692668,0.61941,2914.8,2914.7,0.00514765]
[1764153696663,0.17161,2914.8,2914.7,0.45794765]
[1764153697066,0.62701,2914.8,2914.7,0.45794765]
[1764153698471,0.62701,2914.8,2914.7,0.00514765]
[1764153702870,2.02645144,2914.8,2914.7,0.00514765]
[1764153703068,2.80462053,2914.8,2914.7,0.00514765]
[1764153704362,3.73112634,2914.8,2914.7,0.00514765]
[1764153704866,2.3316849,2914.8,2914.7,0.00514765]
[1764153705268,1.40517909,2914.8,2914.7,0.00514765]
[1764153705471,2.33031155,2914.8,2914.7,0.49824765]
[1764153705873,0.94977909,2914.8,2914.7,0.49824765]
[1764153706270,0.78044796,2914.8,2914.7,0.49824765]
[1764153706470,1e-08,2915.0,2914.9,0.4931]
[1764153706775,0.00514765,2915.2,2915.1,0.4931]
[1764153707569,0.00790426,2915.2,2915.1,0.4931]
[1764153707769,0.46330426,2915.2,2915.1,0.4931]
[1764153707974,1.24347847,2915.2,2915.1,0.4931]
[1764153708674,0.78807847,2915.2,2915.1,0.4931]
[1764153709470,0.00790426,2915.2,2915.1,0.4931]
[1764153709872,0.46330426,2915.2,2915.1,0.4931]
[1764153710273,0.4554,2915.1,2915.0,0.2741]
[1764153710470,1.2352762,2915.1,2915.0,0.2741]
[1764153710673,1.2352762,2915.1,2915.0,0.7672]
[1764153710978,0.63489426,2915.2,2915.1,0.4931]
[1764153711173,0.4554,2915.1,2915.0,0.7672]
[1764153711367,1.23532925,2915.1,2915.0,0.7672]
[1764153713480,0.77992925,2915.1,2915.0,0.7672]
[1764153713780,0.17949426,2915.2,2915.1,0.4931]
[1764153717381,0.00790426,2915.2,2915.1,0.4931]
[1764153717977,0.46330426,2915.2,2915.1,0.4931]
[1764153718185,0.46330426,2915.2,2915.0,0.2741]
[1764153718186,0.4554,2915.1,2915.0,0.2741]
[1764153718483,0.4554,2915.1,2915.0,0.7672]
[1764153721784,0.4554,2914.8,2914.7,0.49824765]
[1764153722086,0.00790426,2915.2,2914.7,0.49824765]
[1764153722277,0.62701,2914.8,2914.7,0.00514765]
[1764153722881,0.62701,2914.8,2914.7,0.49824765]
[1764153723877,0.62701,2914.8,2914.7,0.00514765]
[1764153724581,1.40630398,2914.8,2914.7,0.00514765]
[1764153725888,1.40630398,2914.8,2914.7,0.49504765]
[1764153726092,0.95090398,2914.8,2914.7,0.49504765]
[1764153726276,1.42830398,2914.8,2914.7,0.00514765]
[1764153744503,0.64903,2914.6,2914.5,0.00338221]
[1764153744894,1.42832398,2914.6,2914.5,0.00338221]
[1764153746697,1.42832398,2914.6,2914.5,0.28048221]
[1764153747301,1.42832398,2914.6,2914.5,0.75408221]
[1764153747503,0.95092398,2914.6,2914.5,0.75408221]
[1764153747998,0.77929398,2914.6,2914.5,2.15352365]
[1764153748200,0.92421585,2914.9,2914.5,2.15352365]
[1764153748894,1.70350983,2914.9,2914.5,2.15352365]
[1764153749494,1.25669398,2914.8,2914.7,0.4736]
[1764153752107,0.4774,2914.6,2914.5,0.28048221]
[1764153752499,1.25669398,2914.6,2914.5,0.28048221]
[1764153754699,1.25669398,2914.6,2914.5,0.75408221]
[1764153755805,1.25669398,2914.6,2914.5,0.28048221]
[1764153757508,1.25669398,2914.6,2914.5,0.75998221]
[1764153758108,0.77929398,2914.6,2914.5,0.75998221]
[1764153760405,0.92421585,2914.9,2914.8,0.4795]
[1764153760603,0.78058134,2914.9,2914.8,0.4795]
[1764153760805,0.00790426,2915.2,2915.1,0.4795]
[1764153761206,1.26132289,2915.2,2915.1,0.4795]
[1764153763309,0.78842289,2915.2,2915.1,0.4795]
[1764153764402,1.26132289,2915.2,2915.1,0.4795]
[1764153764611,0.4729,2915.1,2915.0,0.2763]
[1764153764806,0.4729,2915.1,2915.0,0.7558]
[1764153765006,0.48080426,2915.2,2915.1,0.4795]
[1764153765210,1.26030875,2915.2,2915.1,0.4795]
[1764153768608,0.4729,2914.7,2914.6,0.4795]
[1764153769105,0.17949426,2915.2,2914.6,1.87898813]
[1764153769305,0.7790204,2915.1,2914.6,1.87898813]
[1764153769517,1.57898239,2915.2,2914.6,0.4795]
[1764153769715,0.4729,2914.7,2914.6,0.4795]
[1764153770112,1.57898239,2915.2,2914.6,0.4795]
[1764153770318,0.77899978,2915.1,2914.6,1.87898813]
[1764153770519,1.57898239,2915.2,2914.6,1.87898813]
[1764153770719,0.77899978,2915.1,2914.6,1.87898813]
[1764153770918,1.57898239,2915.2,2914.6,1.87898813]
[1764153771218,0.77899978,2915.1,2914.6,1.87898813]
[1764153771518,1.57898239,2915.2,2914.6,1.87898813]
[1764153771717,0.77897488,2915.1,2914.6,1.87898813]
[1764153771920,1.57898239,2915.2,2914.6,1.87898813]
[1764153772112,0.77897488,2915.1,2914.6,1.87898813]
[1764153772409,1.57898239,2915.2,2914.6,1.87898813]
[1764153772610,0.77895431,2915.1,2914.6,1.87898813]
[1764153772809,1.57898239,2915.2,2914.6,1.87898813]
[1764153773009,0.77895431,2915.1,2914.6,1.87898813]
[1764153773319,1.57898239,2915.2,2914.6,1.87898813]
[1764153773517,0.77893794,2915.1,2914.6,1.87898813]
[1764153773718,1.57898239,2915.2,2914.6,1.87898813]
[1764153774019,0.77893794,2915.1,2914.6,1.87898813]
[1764153774220,1.57898239,2915.2,2914.6,1.87898813]
[1764153774517,0.77893031,2915.1,2914.6,1.87898813]
[1764153774720,1.57898239,2915.2,2914.6,1.87898813]
[1764153774921,0.77893031,2915.1,2914.6,1.87898813]
[1764153775120,0.17949426,2915.2,2914.6,1.87898813]
[1764153775321,1.25187115,2915.1,2915.0,0.2763]
[1764153776720,1.25187115,2915.1,2915.0,0.7558]
[1764153778120,1.25187115,2915.1,2915.0,0.2763]
[1764153780124,1.25187115,2915.1,2915.0,0.7558]
[1764153782232,0.77897115,2915.1,2914.8,0.4795]
[1764153782534,0.4729,2915.1,2915.0,0.7558]
[1764153782827,1.25305502,2915.1,2915.0,0.7558]
[1764153783627,1.25305502,2915.1,2915.0,0.2763]
[1764153786722,1.42465502,2915.1,2915.0,0.2763]
[1764153790934,0.4675,2914.7,2914.6,3.70003051]
[1764153791839,0.4675,2914.7,2914.6,2.30054238]
[1764153792039,0.4675,2914.7,2914.6,0.4553]
[1764153792243,1.24909573,2914.7,2914.6,0.4553]
[1764153793545,0.4675,2914.7,2914.6,0.4553]
[1764153800748,0.63911,2914.8,2914.7,0.4553]
[1764153801147,1.42050696,2914.8,2914.7,0.4553]
[1764153803151,0.4675,2914.7,2914.6,1.85478813]
[1764153804554,0.4675,2914.6,2914.5,0.00338221]
[1764153805056,1.42049607,2914.6,2914.5,0.29168221]
[1764153805255,1.42049607,2914.6,2914.5,0.74698221]
[1764153811161,1.42049607,2914.6,2914.5,0.00338221]
[1764153812052,0.4675,2914.1,2914.0,2.11384238]
[1764153812254,0.4675,2913.8,2913.7,2.30054238]
[1764153812560,0.4675,2913.8,2913.7,0.4553]
[1764153812759,0.4675,2913.8,2913.7,1.85478813]
[1764153813257,0.4675,2913.8,2913.7,1.85816605]
[1764153814453,0.17166,2914.0,2913.7,1.85816605]
[1764153814651,0.63916,2914.0,2913.9,0.4553]
[1764153815456,0.63916,2914.0,2913.7,0.00337792]
[1764153815654,0.17166,2914.0,2913.9,0.4884]
[1764153815848,0.64786,2914.0,2913.9,0.4884]
[1764153818665,0.4762,2913.8,2913.7,0.49177792]
[1764153820568,0.64787,2913.8,2913.7,0.00337792]
[1764153821764,1.25650655,2913.8,2913.5,0.00514765]
[1764153821969,0.4762,2913.6,2913.5,0.00514765]
[1764153822169,0.64788,2913.6,2913.5,0.00514765]
[1764153822962,0.64788,2913.6,2913.5,0.00849615]
[1764153823560,0.64788,2913.6,2913.5,0.28759615]
[1764153823758,0.64788,2913.6,2913.5,0.77599615]
[1764153827070,0.64788,2913.6,2913.5,0.00849615]
[1764153827258,0.64788,2913.6,2913.5,0.28759615]
[1764153827871,0.64788,2913.6,2913.5,0.77599615]
[1764153833072,0.64788,2913.6,2913.5,0.00849615]
[1764153833970,0.64788,2913.6,2913.5,0.28759615]
[1764153834671,0.64788,2913.6,2913.5,0.77599615]
[1764153837368,0.64788,2913.6,2913.5,0.00849615]
[1764153837873,0.4762,2913.1,2913.0,0.7767]
[1764153838977,0.48047449,2913.1,2913.0,0.77982938]
[1764153840172,0.65218449,2913.1,2913.0,0.77982938]
[1764153840376,0.65218449,2913.1,2913.0,0.29142938]
[1764153840870,0.4762,2912.9,2912.4,1.84524238]
[1764153841069,0.64793,2912.8,2912.7,0.4884]
[1764153841266,0.17173,2912.8,2912.7,0.4884]
[1764153841868,0.17173,2912.8,2912.7,0.49240646]
[1764153842475,0.48047449,2913.1,2913.0,0.7675]
[1764153842880,1.43479971,2913.1,2913.0,0.7675]
[1764153843070,0.4662,2912.8,2912.7,0.48640646]
[1764153843274,0.4662,2912.8,2912.7,0.00400646]
[1764153844074,0.4662,2912.8,2912.7,0.48640646]
[1764153844778,0.63793,2912.9,2912.8,0.4824]
[1764153846380,0.17173,2912.9,2912.8,0.4824]
[1764153846685,0.66163,2912.9,2912.8,0.4824]
[1764153849584,0.17173,2912.9,2912.8,0.4824]
[1764153850689,0.66163,2912.9,2912.8,0.4824]
[1764153851489,0.4899,2912.8,2912.7,0.00400646]
[1764153852079,0.4899,2912.8,2912.7,0.47740646]
[1764153856694,0.17173,2912.9,2912.8,0.4734]
[1764153860195,0.66163,2912.9,2912.8,0.4734]
[1764153863498,0.17173,2912.9,2912.8,0.4734]
[1764153865300,0.95525338,2912.9,2912.8,0.4734]
[1764153867801,0.78352338,2912.9,2912.8,0.4734]
[1764153868900,0.00427449,2913.1,2913.0,0.7577]
[1764153869100,0.78875308,2913.1,2913.0,2.15757424]
[1764153870000,0.00427449,2913.1,2913.0,2.15757424]
[1764153870300,0.92409381,2913.6,2913.5,0.7577]
[1764153870508,1.58566381,2913.9,2913.8,0.4734]
[1764153870996,1.44578661,2913.9,2913.8,0.4734]
[1764153871401,0.4899,2913.6,2913.5,0.2843]
[1764153871601,0.4899,2913.6,2913.5,0.7577]
[1764153871804,0.49504765,2913.8,2913.7,0.4734]
[1764153871994,1.27822339,2913.8,2913.7,0.4734]
[1764153872593,0.78832339,2913.8,2913.7,0.4734]
[1764153872798,1.27822339,2913.8,2913.5,0.2843]
[1764153872999,0.4899,2913.6,2913.5,0.7577]
[1764153873403,0.49504765,2913.8,2913.7,0.4734]
[1764153873804,1.27748959,2913.8,2913.7,0.4734]
[1764153874308,0.49504765,2913.8,2913.7,0.4734]
[1764153880411,0.4899,2913.7,2913.6,1.40005389]
[1764153880616,0.4899,2913.7,2913.6,1.87355389]
[1764153881618,0.00514765,2913.8,2913.7,0.4735]
[1764153882309,0.49674765,2913.8,2913.7,0.4735]
[1764153882611,0.4916,2913.7,2913.6,1.40005389]
[1764153882811,0.4916,2913.7,2913.6,1.87355389]
[1764153883511,0.49674765,2913.8,2913.7,0.4735]
[1764153884418,0.00514765,2913.8,2913.7,0.4735]
[1764153893323,0.49674765,2913.8,2913.7,0.4735]
[1764153894721,1.27890354,2913.8,2913.7,0.4735]
[1764153896022,1.27890354,2913.8,2913.7,1.87355389]
[1764153898122,0.78730354,2913.8,2913.7,1.87355389]
[1764153905525,0.78904181,2913.8,2913.7,1.87355389]
[1764153906531,1.28244181,2913.8,2913.7,0.4735]
[1764153907430,0.78904181,2913.8,2913.5,2.17605389]
[1764153907631,0.4801,2913.2,2913.1,1.84424667]
[1764153907837,0.4801,2913.1,2912.9,1.84424667]
[1764153908129,0.4801,2913.1,2913.0,0.776]
[1764153908428,1.26399416,2913.1,2913.0,0.2843]
[1764153909026,1.26399416,2913.1,2913.0,2.17605389]
[1764153909027,0.78389416,2913.1,2913.0,2.17605389]
[1764153909330,1.26399416,2913.1,2913.0,2.17605389]
[1764153909532,1.26399416,2913.1,2913.0,0.776]
[1764153909728,1.26399416,2913.1,2913.0,0.2843]
[1764153910130,1.26399416,2913.1,2913.0,0.776]
[1764153912427,0.4801,2913.1,2913.0,0.776]
[1764153914741,0.1717,2913.3,2913.0,2.17605389]
[1764153915040,0.78185953,2913.2,2913.1,0.4917]
[1764153915243,0.4801,2913.5,2913.4,0.4917]
[1764153915541,1.26187359,2913.5,2913.4,0.4917]
[1764153916036,1.26187359,2913.5,2913.0,1.68435389]
[1764153916241,0.4801,2913.1,2913.0,2.17605389]
[1764153916542,0.4801,2913.1,2913.0,0.2843]
[1764153917038,0.4801,2913.1,2913.0,0.776]
[1764153918041,0.4801,2913.1,2913.0,0.2843]
[1764153918335,0.4801,2912.8,2912.7,0.00400646]
[1764153918542,0.4801,2912.8,2912.7,0.49570646]
[1764153919138,0.17171,2913.2,2912.7,0.49570646]
[1764153919440,1.26175263,2913.1,2913.0,0.2959]
[1764153921239,1.26175263,2913.1,2913.0,0.7876]
[1764153922145,0.78165263,2913.1,2913.0,0.7876]
[1764153922343,1.26175263,2913.1,2913.0,0.7876]
[1764153922842,0.78165263,2913.1,2913.0,0.7876]
[1764153923046,0.9271809,2913.5,2913.0,2.18765389]
[1764153923341,0.78137783,2913.4,2913.2,1.40005389]
[1764153923645,0.4801,2913.4,2913.3,0.4917]
[1764153924038,1.26149108,2913.4,2913.3,0.4917]
[1764153924433,0.78139108,2913.4,2913.3,0.4917]
[1764153924633,0.17169,2913.6,2913.5,0.7876]
[1764153925250,0.95301827,2913.6,2913.5,0.7876]
[1764153925439,0.78132827,2913.6,2913.5,0.7876]
[1764153925644,1.26148479,2913.7,2913.6,0.4917]
[1764153926050,0.78138479,2913.7,2913.6,1.89175389]
[1764153927550,0.00514765,2913.8,2913.7,0.4917]
[1764153928052,0.48524765,2913.8,2913.7,0.4917]
[1764153928849,0.48524765,2913.8,2913.7,1.89175389]
[1764153929038,0.00514765,2913.8,2913.7,1.89175389]
[1764153931844,1.26610736,2913.8,2913.7,0.4917]
[1764153932944,0.4801,2913.6,2913.5,0.7876]
[1764153933550,0.4801,2913.6,2913.5,2.18765389]
[1764153933749,0.48524765,2913.8,2913.7,0.4917]
[1764153933946,0.4801,2913.6,2913.5,2.18765389]
[1764153934353,0.00514765,2913.8,2913.5,2.18765389]
[1764153934653,0.48524765,2913.8,2913.5,1.69595389]
[1764153935859,0.4801,2913.6,2913.5,2.18765389]
[1764153936659,0.4801,2913.6,2913.5,0.7876]
[1764153936858,0.47664765,2913.8,2913.7,0.4912]
[1764153937260,1.25766821,2913.8,2913.7,0.4912]
[1764153940259,0.78616821,2913.8,2913.7,0.4912]
[1764153942457,0.00514765,2913.8,2913.7,1.89142155]
[1764153944060,0.47664765,2913.8,2913.7,0.4912]
[1764153944665,0.00514765,2913.8,2913.7,0.4912]
[1764153951362,0.78686171,2913.8,2913.7,0.4912]
[1764153954065,0.78746017,2913.8,2913.7,1.89142155]
[1764153956072,0.78746017,2913.8,2913.7,0.4912]
[1764153972884,1.23586017,2913.8,2913.7,0.4912]
[1764153973080,0.78746017,2913.8,2913.7,0.4912]
[1764153973678,1.23586017,2913.8,2913.7,0.4912]
[1764153977592,0.78746017,2913.8,2913.7,0.4912]
[1764153979895,1.23586017,2913.8,2913.7,0.4912]
[1764153981397,0.78746017,2913.8,2913.7,0.4912]
[1764153985899,1.23586017,2913.8,2913.7,0.4912]
[1764153988900,0.4484,2913.6,2913.5,3.54036822]
[1764153989102,0.4484,2913.5,2913.4,1.84424667]
[1764153989309,0.4484,2913.4,2913.3,1.84424667]
[1764153989499,0.4484,2913.3,2913.2,1.84424667]
[1764153989804,0.4484,2913.2,2913.1,1.84424667]
[1764153990506,0.4484,2913.2,2913.1,2.31374667]
[1764153991608,0.4484,2913.2,2913.1,1.84424667]
[1764153991809,0.4484,2913.2,2912.7,0.00400646]
[1764153991810,0.4484,2912.8,2912.7,0.00400646]
[1764153996906,0.4484,2912.8,2912.7,0.47350646]
[1764153997706,0.17171,2913.2,2912.7,0.47350646]
[1764153998115,0.17171,2913.2,2912.9,1.87802155]
[1764153998116,0.4583,2913.0,2912.9,1.87802155]
[1764153998318,0.4583,2913.1,2913.0,0.7508]
[1764153998517,0.4583,2913.1,2913.0,2.15136133]
[1764154003112,0.63001,2913.2,2913.1,0.4778]
[1764154003313,1.40965127,2913.2,2913.1,0.4778]
[1764154006920,0.95135127,2913.2,2913.1,0.4778]
[1764154007223,1.38415613,2913.6,2913.5,0.7508]
[1764154007423,1.23789853,2913.6,2913.5,2.15136133]
[1764154007921,1.23789853,2913.6,2913.5,1.67356133]
[1764154008122,1.23789853,2913.6,2913.5,0.273]
[1764154008716,0.4583,2913.4,2913.3,1.87836133]
[1764154010822,0.4583,2913.1,2913.0,1.67356133]
[1764154011323,0.4583,2913.1,2913.0,2.15136133]
[1764154012623,0.4583,2913.1,2913.0,1.67356133]
[1764154013024,0.4583,2913.1,2913.0,2.15136133]
[1764154016525,0.4583,2913.1,2913.0,0.7508]
[1764154016723,0.4583,2913.1,2913.0,2.15136133]
[1764154018228,1.23966294,2913.1,2913.0,2.15136133]
[1764154022230,1.24210268,2913.1,2913.0,2.15136133]
[1764154022626,1.41381268,2913.1,2913.0,1.67356133]
[1764154022833,0.4711,2912.9,2912.8,1.40056133]
[1764154023031,0.4711,2912.9,2912.8,1.87396133]
[1764154026136,0.4711,2912.9,2912.8,3.718208]
[1764154026723,0.4711,2912.9,2912.8,1.87396133]
[1764154026927,1.25499826,2912.9,2912.8,1.87396133]
[1764154027532,1.42672826,2912.9,2912.8,1.87396133]
[1764154030236,0.78389826,2912.9,2912.8,1.87396133]
[1764154030440,1.38405767,2913.4,2913.3,0.4518]
[1764154030635,0.17173,2912.8,2912.7,0.00400646]
[1764154030941,0.17174,2912.6,2912.5,0.00319577]
[1764154031129,2.02354848,2912.6,2912.5,0.00319577]
[1764154031334,0.17176,2912.4,2911.3,2.45618133]
[1764154031537,1.0964699,2912.4,2911.7,1.40056133]
[1764154031736,2.18424051,2912.3,2912.0,0.29092271]
[1764154031934,0.17177,2912.1,2912.0,0.29092271]
[1764154032139,1.0964799,2912.1,2912.0,0.29092271]
[1764154032336,0.95544918,2912.1,2912.0,0.29092271]
[1764154032538,0.17178,2911.9,2911.8,0.00514765]
[1764154032841,0.95545918,2911.9,2911.8,0.00514765]
[1764154033133,2.35602051,2911.9,2911.8,0.00514765]
[1764154033543,0.1718,2911.6,2911.5,0.273]
[1764154033742,0.17582056,2911.6,2911.5,0.27609547]
[1764154033944,0.965745,2911.6,2911.5,0.27609547]
[1764154035350,0.17582056,2911.6,2911.5,0.27609547]
[1764154037348,0.17582056,2911.6,2911.5,0.72789547]
[1764154041344,0.17582056,2911.6,2911.5,0.27609547]
[1764154043354,0.17582056,2911.6,2911.5,0.72789547]
[1764154044752,0.17582056,2911.6,2911.5,2.1284568]
[1764154044949,0.17177,2912.2,2912.1,0.4518]
[1764154045154,0.17177,2912.2,2912.1,1.85236133]
[1764154046052,0.17573286,2912.2,2912.1,1.85236133]
[1764154046649,0.00514765,2912.3,2912.2,0.4518]
[1764154047153,0.17174,2912.7,2912.2,0.4518]
[1764154047355,0.17171,2913.2,2913.1,0.4518]
[1764154047655,0.17171,2913.1,2913.0,0.7235]
[1764154051856,0.17173,2912.9,2912.8,0.00514765]
[1764154052157,0.17177,2912.1,2912.0,0.7235]
[1764154055466,0.17177,2912.1,2912.0,2.12406133]
[1764154056767,0.17177,2912.1,2912.0,0.7235]
[1764154059067,0.17177,2912.1,2912.0,2.12406133]
[1764154060670,0.17177,2912.1,2912.0,0.7235]
[1764154062469,0.91814972,2912.5,2912.4,0.4518]
[1764154062764,0.91814972,2912.9,2912.8,0.4774]
[1764154062969,1.08986972,2913.0,2912.9,0.4774]
[1764154063460,0.96241726,2913.0,2912.9,0.4774]
[1764154067370,0.17174,2912.7,2912.6,0.4774]
[1764154071362,0.96217267,2912.7,2912.6,0.4774]
[1764154073774,0.9624848,2912.7,2912.6,0.4774]
[1764154075677,0.92134905,2913.0,2912.9,0.4774]
[1764154075870,0.92134905,2913.0,2912.9,1.87927795]
[1764154076071,1.09306905,2913.1,2913.0,0.765]
[1764154081782,1.34826905,2913.1,2913.0,0.2876]
[1764154082287,1.34826905,2913.1,2913.0,0.765]
[1764154084987,0.17172,2913.0,2912.6,1.40187795]
[1764154085890,0.42752,2913.0,2912.9,0.4546]
[1764154086190,1.34886905,2913.0,2912.9,0.4546]
[1764154087691,2.13665807,2913.0,2912.9,0.4546]
[1764154088289,1.21530902,2913.0,2912.9,0.4546]
[1764154088890,0.42753,2912.9,2912.8,0.4546]
[1764154089092,2.13858622,2912.9,2912.5,0.2876]
[1764154089293,0.78778902,2912.8,2912.5,0.2876]
[1764154089493,1.04358902,2912.8,2912.7,0.4546]
[1764154089701,1.04358902,2912.8,2912.5,0.2876]
[1764154089886,1.04358902,2912.7,2912.6,0.4546]
[1764154092193,0.2558,2912.6,2912.5,0.2876]
[1764154092494,1.04358902,2912.6,2912.5,0.2876]
[1764154093287,1.96685622,2912.6,2912.5,0.2876]
[1764154093888,2.13859622,2912.6,2912.5,0.2876]
[1764154095200,1.21532902,2912.6,2912.5,0.2876]
[1764154098396,1.21532902,2912.6,2912.5,0.7422]
[1764154099003,0.95952902,2912.6,2912.5,0.7422]
[1764154102004,1.21532902,2912.6,2912.5,0.7422]
[1764154104405,0.95952902,2912.6,2912.5,0.7422]
[1764154111510,0.17174,2912.6,2912.5,0.7422]
[1764154114308,0.42754,2912.6,2912.5,0.7422]
[1764154114499,0.42754,2912.6,2912.5,1.23631856]
[1764154114711,0.17175,2912.5,2912.4,0.92728707]
[1764154115006,0.42756,2912.4,2912.3,0.92728707]
[1764154115206,1.3508272,2912.4,2912.3,0.92728707]
[1764154115409,0.2561,2912.2,2912.1,0.92728707]
[1764154115608,0.42787,2912.1,2912.0,0.92728707]
[1764154115907,0.42788,2912.0,2911.9,0.92728707]
[1764154116504,0.2561,2911.9,2911.8,0.92728707]
[1764154118414,0.2561,2911.8,2911.7,1.39648707]
[1764154120202,0.17178,2912.0,2911.7,1.39648707]
[1764154120406,0.17178,2912.0,2911.9,0.4692]
[1764154120614,0.42788,2912.0,2911.9,0.4692]
[1764154121116,0.42788,2912.0,2911.6,1.39648707]
[1764154121117,0.2561,2911.7,2911.6,1.39648707]
[1764154121816,0.42789,2911.9,2911.8,0.4692]
[1764154122114,0.42789,2911.9,2911.6,0.92728707]
[1764154122307,0.2561,2911.7,2911.6,1.39648707]
[1764154122508,0.2561,2911.7,2911.6,2.79864719]
[1764154123421,0.17179,2911.9,2911.6,2.79864719]
[1764154124007,0.42789,2911.9,2911.8,0.4692]
[1764154128315,0.17179,2911.9,2911.8,1.87136012]
[1764154129710,0.42789,2911.9,2911.8,0.4692]
[1764154129921,0.4279,2911.7,2911.6,0.4692]
[1764154130720,0.4279,2911.6,2911.5,0.27609547]
[1764154134225,0.4279,2911.6,2911.5,0.74529547]
[1764154138330,0.1718,2911.6,2911.5,0.74529547]
[1764154143935,0.1718,2911.6,2911.5,2.14745559]
[1764154144129,0.00514765,2911.8,2911.7,0.4692]
[1764154144430,0.00514765,2911.8,2911.7,2.79671399]
[1764154148131,0.00514765,2911.8,2911.7,3.10767868]
[1764154148828,0.9232672,2912.3,2912.2,0.4677]
[1764154149032,1.0950272,2912.4,2912.2,1.86986012]
[1764154149234,1.0950272,2912.4,2912.3,0.4677]
[1764154149725,1.3557272,2912.4,2912.3,0.4677]
[1764154151638,1.0950272,2912.4,2912.3,0.4677]
[1764154153240,1.3557272,2912.4,2912.3,0.4677]
[1764154155238,1.0950272,2912.4,2912.3,0.4677]
[1764154155444,0.17176,2912.4,2912.3,0.4677]
[1764154156246,0.00514765,2912.6,2912.5,0.7628]
[1764154156436,0.00514765,2912.6,2912.5,2.16496012]
[1764154162143,1.23297619,2913.6,2913.5,0.7628]
[1764154162339,0.2844,2914.5,2914.0,0.7628]
[1764154162540,1.66796012,2915.0,2914.5,0.2951]
[1764154162541,1.23297619,2914.9,2914.5,0.2951]
[1764154162752,0.4896,2914.7,2914.6,1.86986012]
[1764154163050,0.5595,2914.5,2914.4,0.00514765]
[1764154163249,1.96532279,2914.5,2914.4,0.00953405]
[1764154163645,0.56316267,2914.5,2914.4,0.00953405]
[1764154165849,0.49326267,2914.5,2914.4,0.47723405]
[1764154167252,0.56316267,2914.5,2914.4,0.00953405]
[1764154167452,1.96532279,2914.5,2914.4,0.00953405]
[1764154167657,0.56316267,2914.5,2914.4,0.00953405]
[1764154168358,0.00366267,2914.5,2914.4,0.47723405]
[1764154170855,0.49326267,2914.5,2914.4,0.47723405]
[1764154171355,0.00366267,2914.5,2914.4,0.47723405]
[1764154171757,2.17982279,2914.5,2914.4,0.00953405]
[1764154172755,2.35145279,2914.5,2914.4,0.00953405]
[1764154173655,0.94929267,2914.5,2914.4,0.00953405]
[1764154181458,2.35145279,2914.5,2914.4,0.00953405]
[1764154181659,0.17165,2914.2,2913.7,1.40216012]
[1764154182263,0.17165,2914.2,2913.9,1.40216012]
[1764154182470,0.45276267,2914.5,2914.4,0.4608]
[1764154182661,0.62439267,2914.5,2914.4,0.46444032]
[1764154187170,0.71059267,2914.5,2914.4,0.00364032]
[1764154191770,0.62074,2914.3,2914.2,0.00514765]
[1764154192274,1.8505452,2914.3,2914.2,0.00514765]
[1764154193066,1.8505452,2914.3,2914.2,0.00867602]
[1764154194074,0.62074,2914.3,2914.2,0.00867602]
[1764154195774,0.62074,2914.3,2914.2,0.46947602]
[1764154201775,0.62074,2914.3,2914.2,0.00867602]
[1764154202874,0.4943,2913.3,2913.2,1.23631856]
[1764154203074,0.4943,2913.2,2913.1,0.483]
[1764154203264,0.666,2913.4,2913.3,0.483]
[1764154203763,0.666,2913.4,2913.3,0.48552387]
[1764154203764,0.1717,2913.4,2913.3,0.48552387]
[1764154203968,0.666,2913.4,2913.3,0.00252387]
[1764154205877,0.17173,2912.9,2912.5,0.2951]
[1764154206379,0.64083,2912.9,2912.8,0.4749]
[1764154206875,0.64083,2912.9,2912.8,0.4775625]
[1764154207378,0.64083,2912.9,2912.8,0.0026625]
[1764154209385,0.64083,2912.9,2912.8,0.4775625]
[1764154210581,0.17173,2912.9,2912.8,0.4775625]
[1764154211875,0.64083,2912.9,2912.8,0.4775625]
[1764154212681,0.17173,2912.9,2912.8,0.4775625]
[1764154217178,0.64083,2912.9,2912.8,0.0026625]
[1764154217791,0.64083,2912.9,2912.8,0.4775625]
[1764154222586,0.17173,2912.9,2912.8,1.87725976]
[1764154223089,0.1717,2913.4,2913.0,0.277]
[1764154223286,0.1717,2913.4,2913.3,0.4749]
[1764154223987,0.00514765,2913.6,2913.5,0.7519]
[1764154224184,0.00514765,2913.6,2913.5,2.15159726]
[1764154224491,0.17167,2914.0,2913.9,0.4749]
[1764154225186,0.00366267,2914.5,2914.0,0.277]
[1764154225386,0.47791032,2914.5,2914.4,0.4749]
[1764154226584,0.64954032,2914.5,2914.4,0.4749]
[1764154229587,0.00881032,2914.5,2914.4,0.4749]
[1764154230390,0.00881032,2914.5,2914.4,1.87459726]
[1764154232793,0.1716,2915.0,2914.9,0.4749]
[1764154233894,0.6449104,2915.0,2914.9,0.47925716]
[1764154234696,0.4733104,2915.0,2914.9,0.47925716]
[1764154234994,0.0042104,2915.0,2914.9,0.47925716]
[1764154241794,0.00514765,2915.2,2915.1,0.4639]
[1764154242000,0.65776,2915.8,2915.7,0.4639]
[1764154242688,0.2724,2915.5,2915.0,0.2906]
[1764154242895,0.4862,2915.1,2915.0,0.75964765]
[1764154243289,0.17158,2915.4,2915.0,0.75964765]
[1764154244690,0.65778,2915.4,2915.3,0.4639]
[1764154246000,0.17158,2915.4,2915.3,0.4639]
[1764154246499,0.00927037,2915.5,2915.4,0.4639]
[1764154252604,0.49547037,2915.5,2915.4,0.4639]
[1764154253907,0.93944037,2915.5,2915.0,0.29574765]
[1764154254109,1.72612845,2915.4,2915.0,0.29574765]